{"text_format":"3","workbook":"xlsx","n_sheets":1,"sheets":["Zapisnik o prijeđenim kilome..."],"not_rendered":{"defined_names":6},"read":"whole","date_system":"1900"}

{"sheet":"Zapisnik o prijeđenim kilome...","index":0,"n_rows":20,"n_cols":9,"rows_kept":20}
[null,"Zapisnik o prijeđenim kilometrima i izvješće o troškovima"]
[]
[null,"Ime i prezime zaposlenika",null,"Cijena po kilometru",{"v":0.27,"d":"0.27 kn"}]
[null,"ID zaposlenika",null,"Za razdoblje",{"$f":"\"Od \"&TEXT(MIN(B9:B19),\"d.m.yy.\")&\" do \"&TEXT(MAX(B9:B19),\"d.m.yy.\")","v":"Od 3.8.17. do 4.8.17."}]
[null,"Opis vozila",null,"Ukupan broj prijeđenih kilometara",{"$f":"Ukupno_Kilometara","v":10}]
[null,"Odobrio",null,"Ukupna naknada",{"$f":"Ukupna_Naknada","v":{"v":2.7,"d":"2.70 kn"}}]
[]
[null,"Datum","Početna lokacija","Odredište","Opis bilješke","Početna vrijednost brojača kilometara","Završna vrijednost brojača kilometara","Broj prijeđenih kilometara","Naknada"]
[null,{"$f":"TODAY()","v":"2017-08-03"},"Matični ured","Northwind Traders","Sastanak s klijentom",36098,36103,{"$f":"IFERROR(IF(OR(ISBLANK(F9),ISBLANK(G9)),0,G9-F9), \"\")","v":5},{"$f":"IFERROR(H9*$E$3, \"\")","v":{"v":1.35,"d":"1.35 kn"}}]
[null,{"$f":"TODAY()+1","v":"2017-08-04"},"Northwind Traders","Matični ured","Sastanak s klijentom",36103,36108,{"$f":"IFERROR(IF(OR(ISBLANK(F10),ISBLANK(G10)),0,G10-F10), \"\")","v":5},{"$f":"IFERROR(H10*$E$3, \"\")","v":{"v":1.35,"d":"1.35 kn"}}]
[{"$nulls":7},0,{"v":0,"d":"0.00 kn"}]
[{"$nulls":7},0,{"v":0,"d":"0.00 kn"}]
[{"$nulls":7},0,{"v":0,"d":"0.00 kn"}]
[{"$nulls":7},0,{"v":0,"d":"0.00 kn"}]
[{"$nulls":7},0,{"v":0,"d":"0.00 kn"}]
[{"$nulls":7},0,{"v":0,"d":"0.00 kn"}]
[{"$nulls":7},0,{"v":0,"d":"0.00 kn"}]
[{"$nulls":7},0,{"v":0,"d":"0.00 kn"}]
[{"$nulls":7},0,{"v":0,"d":"0.00 kn"}]
[{"$nulls":6},"Ukupno",{"$f":"SUBTOTAL(109,Troškovi[Broj prijeđenih kilometara])","v":10},{"$f":"SUBTOTAL(109,Troškovi[Naknada])","v":{"v":2.7,"d":"2.70 kn"}}]